Cogmind - Beta 16 @@@ ROGUE MODE // 2025.11.11 @ 15:51:50 Player: Necroptosis Result: Destroyed by KN-7UR with KN-7UR's Autopenetrator Performance ------------- Evolutions (1) 500 Regions Visited (4) 800 Robots Destroyed (69) 345 Value Destroyed (1492) 1492 Prototype IDs (5) 100 Alien Tech Used (0) 0 Bonus (-60) -60 TOTAL SCORE: 3177 Bonus ------- Follower Combat Kills 33 Friendly Fire -93 Cogmind --------- Core Integrity 0/400 Matter 253/300 Energy 98/100 System Corruption 0% Temperature Warning (333) Movement Core (50) Location -9/Recycling Parts ------- > --- POWER (1) -------- (None) > --- PROPULSION (2) --- (None) > --- UTILITY (4) ------ Weight Redist. System > --- WEAPON (2) ------- Improved Assault Rifle Improved Assault Rifle > --- INVENTORY (5) ---- Improved Flight Unit Structural Scanner Mini Grenade Launcher Datajack Plasma Cutter Peak State ------------ > --- POWER ------------ Heavy Ion Engine > --- PROPULSION ------- Aluminum Leg Improved Aluminum Leg > --- UTILITY ---------- Small Storage Unit Weight Redist. System Core Shielding Centrium Light Armor Plating > --- WEAPON ----------- Improved Assault Rifle Improved Assault Rifle > --- INVENTORY -------- Nuclear Core Improved Flight Unit Structural Scanner Improved Assault Rifle Improved Assault Rifle Mini Grenade Launcher Datajack Plasma Cutter [Rating: 26] Favorites ----------- Power Light Ion Engine Engine Light Ion Engine Propulsion Light Treads Treads Light Treads Leg Aluminum Leg Flight Unit Flight Unit Utility Small Storage Unit Device Weight Redist. System Storage Small Storage Unit Protection Core Shielding Weapon Light Assault Rifle Energy Gun Improved Medium Laser Energy Cannon Advanced Beam Cannon Ballistic Gun Light Assault Rifle Launcher Mini Grenade Launcher Special Weapon Plasma Cutter Build | -11 -10 -9 -9 -9 ------- Run | Yrd Mat Mat Sto Rec Slots Evolved 2 | . . 2 . . Power . | . . . . . Propulsion . | . . . . . Utility 2 | . . 2 . . Weapon . | . . . . . Parts Attached 42 | 7 7 16 9 3 Power 5 | 1 1 3 . . Engine 5 | 1 1 3 . . Core . | . . . . . Reactor . | . . . . . Propulsion 11 | 2 4 4 1 . Treads 3 | 2 1 . . . Leg 6 | . 3 2 1 . Wheel . | . . . . . Hover . | . . . . . Flight 2 | . . 2 . . Utility 9 | 2 . 4 2 1 Device 2 | 1 . 1 . . Storage 1 | 1 . . . . Processor . | . . . . . Hackware . | . . . . . Protection 6 | . . 3 2 1 Artifact . | . . . . . Weapon 17 | 2 2 5 6 2 Energy Gun 1 | . . 1 . . Energy Cannon 1 | . . 1 . . Ballistic Gun 13 | 2 2 2 5 2 Ballistic Cannon . | . . . . . Launcher 1 | . . 1 . . Special Weapon 1 | . . . 1 . Impact Weapon . | . . . . . Slashing Weapon . | . . . . . Piercing Weapon . | . . . . . Special Melee Weapon . | . . . . . Unidentified Prototypes 5 | . . 4 . 1 Parts Lost 17 | . 3 4 1 9 Power 2 | . . 1 . 1 Propulsion 6 | . 2 1 1 2 Utility 6 | . . 2 . 4 Weapon 3 | . 1 . . 2 Highest Loss Streak 9 | . 1 2 1 9 To Critical Strikes . | . . . . . Average Backups 6 | 2 6 7 8 7 Power 1 | . 1 1 1 1 Propulsion 1 | . 2 2 1 1 Utility 1 | . . 1 1 1 Weapon 1 | . 1 1 2 2 Tool/Special . | . . . . . Unused Backups 11 | . 3 2 2 4 Power 1 | . . . . 1 Propulsion 2 | . 1 . . 1 Utility 3 | . . 1 1 1 Weapon 4 | . 2 1 1 . Tool/Special 1 | . . . . 1 Average Slot Usage (%) 95 | . 97 95 88 97 Engine 12 | . 13 10 11 11 Treads 8 | . 18 . . . Leg 13 | . 8 20 13 20 Device 11 | . 11 13 11 11 Storage 12 | . 14 11 11 11 Protection 10 | . . 16 20 21 Ballistic Gun 24 | . 28 21 19 22 Peak Build Rating 26 | 7 7 16 18 26 Average Rating 11 | 5 6 14 16 18 On Entrance 9 | . 7 7 16 18 Avg Prop Armor Cover (%) . | . . . . . Naked Turns . | . . . . . Heaviest Build 23 | 12 13 21 23 23 Greatest Support 40 | 40 40 29 29 29 Greatest Overweight (x) 1 | . 1 1 1 . Average Overweight (x) . | . . . . . Largest Inventory Capacity 8 | 8 8 8 8 8 Average Capacity 7 | 7 8 8 8 7 Most Carried 8 | 3 8 8 8 8 Average Carried 6 | 2 6 7 7 7 Final Capacity 8 | 8 8 8 8 5 Final Carried 8 | 3 7 8 8 5 Class Distribution -------------------- 56% | Mutant 25% | Scavenger-Mutant 17% | Commander-Mutant Dominant Class ---------------- Mutant | -10/Materials Scavenger-Mutant | -9/Materials Mutant | -9/Storage Commander-Mutant | -9/Recycling Resources | -11 -10 -9 -9 -9 ----------- Run | Yrd Mat Mat Sto Rec Matter Collected 1761 | 355 479 524 270 133 Remotely . | . . . . . Salvage Created 2234 | 185 755 623 601 70 Parts 162 | 25 42 45 46 4 Haulers Intercepted 7 | . 2 2 3 . Recyclers Shooed 2 | . . . 2 . Parts Field Recycled . | . . . . . Retrieved Matter . | . . . . . Parts Self-Destructed . | . . . . . Prevented . | . . . . . Parts Restored . | . . . . . Kills | -11 -10 -9 -9 -9 ------- Run | Yrd Mat Mat Sto Rec Combat Hostiles Destroyed 43 | . 17 15 10 1 Guns 32 | . 17 10 4 1 AOE 11 | . . 5 6 . Classes Destroyed 10 | 2 4 2 1 1 Worker 3 | . . 3 . . Builder 1 | . . . 1 . Tunneler 8 | 8 . . . . Hauler 7 | . 2 2 3 . Recycler 4 | 1 1 . 2 . Watcher 3 | . 1 2 . . Swarmer 13 | . 6 4 3 . Grunt 21 | . 11 7 3 . Sentry 8 | . . 4 4 . Scrapper 1 | . . . . 1 Best Kill Streak 8 | 2 5 8 5 1 Combat Bots Only 4 | . 3 4 3 1 Max Kills in Single Turn 3 | 1 2 3 2 1 Gunslinging . | . . . . . Exploded 2 | . . 2 2 . Melee . | . . . . . Uniques/NPCs Destroyed . | . . . . . Combat | -11 -10 -9 -9 -9 -------- Run | Yrd Mat Mat Sto Rec Hostile Shots Fired 320 | . 98 82 28 112 Missed 68 | . 23 28 7 10 Hits 252 | . 75 54 21 102 Projectile 252 | . 75 54 21 102 Critical Strikes 2 | . 1 . . 1 Damage Taken 2927 | . 784 659 284 1200 Core 558 | . 151 124 . 283 Absorbed by Shields . | . . . . . Redirected to Shielding 51 | . . 27 . 24 Regen/Repaired (Parts) 16 | . 16 . . . Core Remaining (%) 69 | 100 39 . . . Volleys Fired 201 | 29 74 56 22 20 Largest 2 | 2 2 2 2 2 Hottest 46 | 40 40 46 46 46 Shots Fired 388 | 58 147 105 38 40 Gun 375 | 58 147 98 32 40 Cannon . | . . . . . Launcher 13 | . . 7 6 . Special . | . . . . . Kinetic 375 | 58 147 98 32 40 Thermal . | . . . . . Explosive 13 | . . 7 6 . Electromagnetic . | . . . . . Robot Hit Streak 16 | 9 13 16 13 11 Robot Miss Streak 6 | 3 3 6 2 2 Penetration Max . | . . . . . Secondary Targets 3 | . 2 1 . . Max Gunslinging Chain 1 | . 1 1 . . Shots Hit Robots 257 | 38 100 69 22 28 Core Hits 125 | 15 39 39 21 11 Critical Kills 1 | . 1 . . . Critical Parts Destroyed 5 | . 3 2 . . Critical Strikes 6 | . 4 2 . . Destroy 6 | . 4 2 . . Melee Attacks . | . . . . . Impact . | . . . . . Slashing . | . . . . . Piercing . | . . . . . Sneak Attacks . | . . . . . Combat Hostiles . | . . . . . Follow-up Attacks . | . . . . . Damage Inflicted 4206 | 390 953 1504 986 373 Guns 2998 | 390 929 962 361 356 Cannons . | . . . . . Explosions 1114 | . . 517 597 . Melee . | . . . . . Ramming 94 | . 24 25 28 17 Kinetic 2998 | 390 929 962 361 356 Thermal . | . . . . . Explosive 1114 | . . 517 597 . Electromagnetic . | . . . . . Impact . | . . . . . Slashing . | . . . . . Piercing . | . . . . . Highest Corruption . | . . . . . Average Corruption . | . . . . . Corruption Purged . | . . . . . Corruption Blocked . | . . . . . Overload Shots . | . . . . . Overflow Damage 28 | . . 9 19 . Projectiles . | . . . . . Explosions 28 | . . 9 19 . Melee . | . . . . . Knockbacks . | . . . . . Impact . | . . . . . Kinetic . | . . . . . Secondary . | . . . . . Self-Inflicted Damage 41 | . . 41 . . Shots 1 | . . 1 . . Rammed 5 | . 5 . . . Targets Rammed 20 | . 8 3 5 4 Kicked 14 | . 2 3 5 4 Crushed 1 | . 1 . . . Highest Temperature 439 | . 31 439 6 328 Average Temperature 82 | . 8 102 3 167 Received Heat Transfer 1339 | . 333 213 117 676 Siege Activations . | . . . . . Martial Activations . | . . . . . Shielding Activations . | . . . . . Robots Disrupted . | . . . . . Combat Hostiles . | . . . . . Robots Corrupted . | . . . . . Combat Hostiles . | . . . . . Parts Fried . | . . . . . Impact Corruptions . | . . . . . Robots Melted . | . . . . . Combat Hostiles . | . . . . . Parts Melted 1 | . . . . 1 Heat Transferred . | . . . . . Parts Sabotaged . | . . . . . Parts Stolen . | . . . . . Parts Stripped . | . . . . . Power Chain Reactions . | . . . . . Alert | -11 -10 -9 -9 -9 ------- Run | Yrd Mat Mat Sto Rec Maximum Alert Level 1 | . . 1 1 . Low Security (%) 88 | 100 100 86 56 100 Level 1 11 | . . 13 43 . Level 2 . | . . . . . Level 3 . | . . . . . Level 4 . | . . . . . Level 5 . | . . . . . High Security . | . . . . . Max Security . | . . . . . Peak Influence 288 | 5 148 254 288 145 Initial 105 | . . 18 98 105 Average 85 | 1 58 77 179 65 Influence Increases 1812 | 45 591 524 562 90 Destroy 0b10 Robot/C 880 | . 340 300 240 . Destroy 0b10 Robot/NC 130 | 45 20 35 30 . Destroy Leader 240 | . 76 78 86 . Allied During Kill 45 | . . . 45 . Successful Hack 34 | . 34 . . . Select Force Hacks 180 | . 60 . 30 90 Disable Machine 75 | . . . 75 . Destroy Structure 93 | . 1 36 56 . Partial Spotted 30 | . . 30 . . Lose Combat Pursuer 105 | . 60 45 . . Influence Decreases 1812 | 45 546 335 526 360 Entered New Map 328 | . . 27 136 165 Time Decay 1414 | 45 526 268 380 195 Lost Part 70 | . 20 40 10 . Squads Dispatched 10 | . 5 3 2 . Investigation 5 | . 3 1 1 . Extermination . | . . . . . Reinforcement 5 | . 2 2 1 . Assault . | . . . . . Garrison . | . . . . . Intercept . | . . . . . Searches Triggered . | . . . . . Construction Impeded 1 | . . . 1 . Haulers Reinforced . | . . . . . Active Scanning Responses . | . . . . . Cargo Convoy Interrupts . | . . . . . Stealth | -11 -10 -9 -9 -9 --------- Run | Yrd Mat Mat Sto Rec Distress Signals 7 | . 2 4 1 . Communications Jammed . | . . . . . Distress Signals . | . . . . . Times Spotted 81 | . 27 27 21 6 Peak Tracking Total 8 | . 5 8 4 3 Tactical Retreats 7 | . 3 3 . 1 Traps | -11 -10 -9 -9 -9 ------- Run | Yrd Mat Mat Sto Rec Traps Triggered 8 | . 6 . 2 . Indirectly . | . . . . . Trap Hack Attempts . | . . . . . Triggered . | . . . . . Disarmed . | . . . . . Reprogrammed . | . . . . . Reused . | . . . . . Traps Extracted . | . . . . . Installed . | . . . . . Triggered . | . . . . . Machines | -11 -10 -9 -9 -9 ---------- Run | Yrd Mat Mat Sto Rec Machines Disabled 6 | . . 1 5 . Max in Single Turn 1 | . . 1 1 . Machines Repaired . | . . . . . Machines Dismantled 3 | . . . 3 . Machines Sabotaged . | . . . . . Overloaded Fab Kills . | . . . . . Hacking | -11 -10 -9 -9 -9 --------- Run | Yrd Mat Mat Sto Rec Machines Accessed 20 | . 10 1 4 5 Terminals 12 | . 7 . 3 2 Fabricators . | . . . . . Repair Stations 1 | . 1 . . . Recycling Units 7 | . 2 1 1 3 Scanalyzers . | . . . . . Garrison Access . | . . . . . Total Hacks 42 | . 25 2 9 6 Successful 23 | . 15 . 3 5 Failed 19 | . 10 2 6 1 Catastrophic 6 | . 5 . 1 . Database Lockouts . | . . . . . Manual 31 | . 20 . 5 6 Terminals 30 | . 21 . 7 2 Fabricators . | . . . . . Repair Stations 2 | . 2 . . . Recycling Units 10 | . 2 2 2 4 Scanalyzers . | . . . . . Garrison Access . | . . . . . Terminal Hacks 6 | . 4 . 2 . Robot Analysis 1 | . 1 . . . Open Door 1 | . . . 1 . Branch Access Points 1 | . . . 1 . Terminal Index 1 | . 1 . . . Recall Investigation 1 | . 1 . . . Zone Layout 1 | . 1 . . . Fabricator Hacks . | . . . . . Repair Station Hacks 2 | . 2 . . . Scan Component 1 | . 1 . . . Repair 1 | . 1 . . . Recycling Unit Hacks . | . . . . . Scanalyzer . | . . . . . Garrison Access Hacks . | . . . . . Unauthorized Hacks 15 | . 9 . 1 5 Terminals 9 | . 7 . . 2 Botnet 1 | . 1 . . . Skim 6 | . 6 . . . Sabotage 1 | . . . . 1 Search 1 | . . . . 1 Fabricators . | . . . . . Repair Stations . | . . . . . Recycling Units 6 | . 2 . 1 3 Tunnel 6 | . 2 . 1 3 Scanalyzers . | . . . . . Garrison Access . | . . . . . Data Cores Recovered . | . . . . . Used . | . . . . . Hacking Detections 11 | . 7 1 3 . Full Trace Events 2 | . . 1 1 . Feedback Events . | . . . . . Feedback Blocked . | . . . . . Robot Schematics Acquired . | . . . . . Robots Built . | . . . . . Authchips . | . . . . . Time . | . . . . . Total Robot Build Rating . | . . . . . Part Schematics Acquired . | . . . . . Parts Built . | . . . . . Authchips . | . . . . . Time . | . . . . . Total Part Build Rating . | . . . . . Part Studies Acquired . | . . . . . Parts Repaired 1 | . 1 . . . Time 26 | . 26 . . . Parts Recycled . | . . . . . Recycled Matter . | . . . . . Retrieved Matter . | . . . . . Retrieved Components . | . . . . . Parts Scanalyzed . | . . . . . Part Schematics Acquired . | . . . . . Parts Damaged . | . . . . . Bothacking | -11 -10 -9 -9 -9 ------------ Run | Yrd Mat Mat Sto Rec Used RIF Installer . | . . . . . Robots Hacked . | . . . . . Non-combat . | . . . . . Combat . | . . . . . Robot Hacks Applied . | . . . . . Relay Couplers Released . | . . . . . Fabnet Peak Effective % . | . . . . . Robots Rewired . | . . . . . Allies Hacked . | . . . . . Hacks Repelled . | . . . . . Allies | -11 -10 -9 -9 -9 -------- Run | Yrd Mat Mat Sto Rec Total Allies 10 | . . . 10 . Largest Group 10 | . . . 10 10 Highest-Rated Group 88 | . . . 88 88 Highest-Rated Ally 16 | . . . 16 16 Total Orders 2 | . . . . 2 STAY 1 | . . . . 1 FOLLOW 1 | . . . . 1 Ally Attacks 22 | . . . 20 2 Total Damage 169 | . . . 169 . Kills 2 | . . . 2 . Allies Corrupted . | . . . . . Allies Melted 1 | . . . . 1 Intel | -11 -10 -9 -9 -9 ------- Run | Yrd Mat Mat Sto Rec Active Infowar (turns) 1611 | 13 1454 144 . . Seismic 1611 | 13 1454 144 . . Robot Analysis Total 1 | . 1 . . . Derelict Logs Recovered . | . . . . . Drone Launches . | . . . . . Drone Recoveries . | . . . . . Exploration | -11 -10 -9 -9 -9 ------------- Run | Yrd Mat Mat Sto Rec Turns Passed 3928 | 288 1695 589 887 469 Spaces Moved 1839 | 125 628 348 407 331 Core 6 | 5 . . 1 . Treads 643 | 120 523 . . . Legs 1100 | . 105 258 406 331 Wheels . | . . . . . Hover . | . . . . . Flight 90 | . . 90 . . Fastest Speed 37 | 50 120 37 100 120 Average Speed 141 | 155 153 98 170 120 Slowest Speed 190 | 160 190 190 190 120 Overloaded Moves . | . . . . . Propulsion Burnouts . | . . . . . Robots Hopped 1 | . . 1 . . Potential Cave-ins . | . . . . . Cave-ins Triggered . | . . . . . Exploration Rate (%) 46 | 8 92 33 49 49 Regions Visited 4 Branch Regions 2 Pre-discovered Areas 6 | . 2 . 1 3 Known Exits Taken 2 | . . 1 1 . Unknown Exits Taken 2 | 1 1 . . . Scrap Searched . | . . . . . Spaces Dug . | . . . . . Terrain Destroyed 113 | . . 55 58 . Melee . | . . . . . Projectile . | . . . . . AOE 113 | . . 55 58 . Terrain Rammed . | . . . . . Walls Destroyed . | . . . . . Machines Disabled . | . . . . . Actions | -11 -10 -9 -9 -9 --------- Run | Yrd Mat Mat Sto Rec Total 2754 | 163 1226 483 518 364 Wait 550 | . 473 42 29 6 Move 1833 | 124 627 345 406 331 Hop 1 | . . 1 . . Pick Up 21 | 3 7 5 6 . Fast Attach 34 | 7 13 5 8 1 Attach 9 | . 6 1 . 2 Detach 5 | . 4 1 . . Swap 34 | . 7 17 10 . Drop 25 | . 7 7 11 . Fire 201 | 29 74 56 22 20 Melee . | . . . . . Ram . | . . . . . Kick 14 | . 2 3 5 4 Crush 6 | . 6 . . . Escape Stasis . | . . . . . Rewire . | . . . . . Trap . | . . . . . Miscellaneous 21 | . . . 21 . Route ------- -11/Scrapyard -10/Materials (discovered 4 exits: *Mat x3 / Sub) -9/Materials (discovered 4 exits: Mat x2 / [*Min] / *Sto) -9/Storage -9/Recycling History --------- Turn | Location | Event 29 | -11/Scrapyard | Discovered new exit (range 15) 289 | -11/Scrapyard | Entered Materials 316 | -10/Materials | Build established: Mutant 640 | -10/Materials | Discovered new exit (range 16) 802 | -10/Materials | Repaired Seismic Detector 870 | -10/Materials | Discovered new exit (range 16) 1210 | -10/Materials | Core integrity fell below 50% 1238 | -10/Materials | Learned location of 1 exit from Recycling 1260 | -10/Materials | Discovered new exit (range 16) 1294 | -10/Materials | Learned 4 Subcaves zone layouts 1734 | -10/Materials | Build established: Scavenger-Mutant 1802 | -10/Materials | Identified exit to Subcaves 1906 | -10/Materials | Learned Storage stockpile data 1984 | -10/Materials | Entered another Materials area 1984 | -9/Materials | Evolved 2 slots: Utility x2 1985 | -9/Materials | Identified exit to Materials 1985 | -9/Materials | Identified exit to Storage 2453 | -9/Materials | Discovered new exit (range 13) 2573 | -9/Materials | Entered Storage 2781 | -9/Storage | Build established: Mutant 2980 | -9/Storage | Met 01-MTF 3192 | -9/Storage | Assisted by bots powering up and referring to "LRC-V3" 3200 | -9/Storage | Identified exit to Recycling 3460 | -9/Storage | Entered Recycling 3460 | -9/Recycling | Accompanied by 11 allies (01-MTF) 3461 | -9/Recycling | Identified exit to Scraptown 3492 | -9/Recycling | Build established: Commander-Mutant 3860 | -9/Recycling | Scanned before Scraplab entrance 3877 | -9/Recycling | Angered Scraplab inhabitants 3904 | -9/Recycling | Core integrity fell below 50% 3918 | -9/Recycling | Core integrity fell below 20% 3929 | -9/Recycling | Destroyed by KN-7UR with KN-7UR's Autopenetrator Last Messages --------------- 03923_ Thermabolt penetrates Wall. 03923_ Penetrated by Thermabolt. 03923_ Thermabolt penetrates Wall. 03925_ Penetrated by Thermabolt. 03925_ Thermabolt penetrates Wall. 03925_ Penetrated by Thermabolt. 03925_ Thermabolt penetrates Wall. 03925_ Penetrated by Thermabolt. 03925_ Hvy. Ion Engine destroyed. 03925_ Thermabolt penetrates Wall. 03927_ Wall collapses. 03927_ Penetrated by Thermabolt. 03927_ Sml. Storage Unit destroyed. 03927_ Penetrated by Thermabolt. 03927_ Thermabolt penetrates Wall. 03927_ Penetrated by Thermabolt. 03927_ Centrium Light Armor Plating destroyed. 03929_ Penetrated by Thermabolt. 03929_ Thermabolt penetrates Wall. 03929_ Penetrated by Thermabolt. Map ----- +----------------------------------------------------+ | | | | | | | | | | | | | | | | | | | | | | | | | | | | | ?????????????????????????????????????????????????? | | ???????????????????????????????????????>?????????? | | ?????????????????????????????????????????????????? | | ?????????????????????????#???????????????????????? | | ????????????????????????#=???????????????????????? | | ????????????????????????*j#??????????????????????? | | ????????????????????????#j#??????????????????????? | | ????????????????????????#h#??????????????????????? | | ????????????????????????#!#??????????????????????? | | ?????????????????????####%####???????????????????? | | ?????????????????????# =%[ #???????????????????? | | ?????????????????????# *=@=[ #???????????????????? | | ?????????????????????# **%=[ #???????????????????? | | ?????????????????????# *[%*!!#???????????????????? | | ?????????????????????####%####???????????????????? | | ????????????????????????#%#??????????????????????? | | ???????????????########## #??????????????????????? | | ???????????????# % % + #??????????????????????? | | ???????????????# ! #;#?#####????????????????? | | ???????????????# %# #?#"""#????????????????? | | ???????????????# = #;###"Y"###############??? | | ???????????????# ## #??? | | ???????????????# ] / #??? | | ???????????????# ! ## #??? | | ???????????????#%[ #### ####### ########??? | | ???????????????# % #??# #???#% #?????????? | | ???##??????????#######+##??# #???#%% #?########? | | ??? ????????????????# #???# #???#%% # #? | | ???# ????????????????# #???# #???### # #? | | ???# ??????########### #####+####### + #? | | ???# ??????# ## ## ## # """"#? | | #### ####### # + " ## # """"?? | | + # # T ## #? """"?? | | # """" # # " """ ## #? """"?? | | # """" # # """??# #?? ?? | | """ + """" + + """??#% #?? ?? | +----------------------------------------------------+ Best States ------------- Heat Dissipation 28 Energy Generation 14 Energy Capacity 280 Matter Stores 300 Matter Capacity 300 Sight Range 16 Terrain Scan Density 10 Additional Mass Support 6 Armor Coverage 150 Core Shielding 20 Evasion (%) 62 Recoil Reduction 2 Item Schematics ----------------- None Robot Schematics ------------------ None Fabricated ------------ Nothing Repaired ---------- Seismic Detector | 20% | -10/Materials Studied --------- None Alien Tech Used ----------------- None Achievements -------------- Frienemies Challenges ------------ None Game ------ Seed ThiefVariableAutobeam Manual? 0 Play Time 00:22:53 Cumulative 475.1 hours Start 2025.11.11 @ 15:29:58 End 2025.11.11 @ 15:51:50 Sessions 1 Manual Loads 0 Difficulty Rogue Special Mode None Game No. 180 Rogue 81 Adventurer 0 Explorer 99 Win Type - Total 66 Types 11/11/11/4/7/6/7/2/3/4 Lore% 86 Gallery% 84 Achievement% 61 Wizard Run 0 Options --------- Layout 1 ASCII 0 Keyboard 0 Movement Numpad Keybinds 0 Fullscreen 1 Font 20/SmallcapsGlow Map View 54x42 Zoom Use 0% Tactical HUD 1 Map Filters NONE Filters NONE Steam 1 RUN: b8ed5324-bb6b-4cf3-93f5-9b4b05e10ada